[Event "CZE-tht Extraliga 2018-19"]
[Site "Czech Republic"]
[Date "2019.02.09"]
[Round "7.3"]
[White "Polak, Tomas"]
[Black "Jurcik, Martin"]
[Result "1/2-1/2"]
[ECO "D31"]
[WhiteElo "2510"]
[BlackElo "2346"]
[Annotator "ChessBase"]
[PlyCount "81"]
[EventDate "2018.11.03"]
[EventType "team-tourn"]
[EventCountry "CZE"]
[SourceTitle "playchess.com"]
[Source "ChessBase"]
[SourceQuality "1"]
[WhiteTeam "Brno"]
[BlackTeam "Siesta B"]
[TimeControl "40/5400+30:1800+30"]

1. d4 {[%emt 0:00:00]} d5 {[%emt 0:03:17]} 2. c4 {[%emt 0:00:07]} e6 {[%emt 0:03:37]} 3. Nc3 {[%emt 0:00:57]} dxc4 {[%emt 0:01:00]} 4. e4 {[%emt 0:04:11]} c5 {[%emt 0:00:47]} 5. d5 {[%emt 0:01:12]} Nf6 {[%emt 0:03:38]} 6. Bxc4 {[%emt 0:00:47]} exd5 {[%emt 0:04:21]} 7. Nxd5 {[%emt 0:00:45]} Nxd5 {[%emt 0:34:28]} 8. Bxd5 {[%emt 0:01:08]} Be7 {[%emt 0:00:14]} 9. Qb3 {[%emt 0:13:59]} O-O {[%emt 0:00:22]} 10. Nf3 {[%emt 0:00:11]} Nd7 {[%emt 0:00:47]} 11. O-O {[%emt 0:06:44]} Nb6 {[%emt 0:04:41]} 12. Rd1 {[%emt 0:12:54]} Nxd5 {[%emt 0:09:50]} 13. exd5 {[%emt 0:01:12]} Bd6 {[%emt 0:00:13]} 14. Bg5 {[%emt 0:04:06]} Qc7 {[%emt 0:04:32]} 15. h3 {[%emt 0:04:03]} h6 {[%emt 0:05:47]} 16. Be3 {[%emt 0:01:09]} b6 {[%emt 0:00:01]} 17. Rac1 {[%emt 0:01:32]} Qd7 {[%emt 0:01:09]} 18. Nd2 {[%emt 0:12:19]} Re8 {[%emt 0:02:38]} 19. a4 {[%emt 0:03:44]} Ba6 {[%emt 0:00:50]} 20. Nc4 {[%emt 0:04:06]} Re4 {[%emt 0:02:22]} 21. a5 {[%emt 0:01:53]} Rb8 {[%emt 0:01:50]} 22. axb6 {[%emt 0:04:10]} axb6 {[%emt 0:00:28]} 23. Qa2 {[%emt 0:01:59]} Bb5 {[%emt 0:02:28]} 24. b3 {[%emt 0:01:45]} Qc7 {[%emt 0:04:10]} 25. Qc2 {[%emt 0:04:05]} Rbe8 {[%emt 0:00:20]} 26. Ra1 {[%emt 0:00:56]} Qd8 {[%emt 0:04:27]} 27. Ra8 {[%emt 0:04:34]} Rxc4 {[%emt 0:01:43]} 28. Qxc4 {[%emt 0:03:02]} Bxc4 {[%emt 0:01:30]} 29. Rxd8 {[%emt 0:00:05]} Rxd8 {[%emt 0:00:03]} 30. bxc4 {[%emt 0:00:04]} Ra8 {[%emt 0:00:06]} 31. Kf1 {[%emt 0:02:39]} Ra4 {[%emt 0:00:02]} 32. Rc1 {[%emt 0:00:22]} Kf8 {[%emt 0:01:13]} 33. Ke2 {[%emt 0:00:34]} Ke7 {[%emt 0:00:29]} 34. Kd3 {[%emt 0:00:34]} Kd7 {[%emt 0:00:24]} 35. g4 {[%emt 0:01:00]} Kc7 {[%emt 0:01:07]} 36. Rb1 {[%emt 0:03:49]} Ra3+ {[%emt 0:00:58]} 37. Kc2 {[%emt 0:00:14]} Ra4 {[%emt 0:01:38]} 38. Kc3 {[%emt 0:00:30]} Ra3+ {[%emt 0:00:30]} 39. Kc2 {[%emt 0:00:43]} Ra4 {[%emt 0:00:27]} 40. Kc3 {[%emt 0:01:00]} Ra3+ {[%emt 0:00:40]} 41. Kc2 {[%emt 0:03:19]} 1/2-1/2

[Event "CZE-tht Extraliga 2018-19"]
[Site "Czech Republic"]
[Date "2019.02.09"]
[Round "7.3"]
[White "Blahynka, Martin"]
[Black "Landa, Konstantin"]
[Result "0-1"]
[ECO "B18"]
[WhiteElo "2426"]
[BlackElo "2616"]
[Annotator "ChessBase"]
[PlyCount "84"]
[EventDate "2018.11.03"]
[EventType "team-tourn"]
[EventCountry "CZE"]
[SourceTitle "playchess.com"]
[Source "ChessBase"]
[SourceQuality "1"]
[WhiteTeam "Duras"]
[BlackTeam "Lysa nad Labem"]
[TimeControl "40/5400+30:1800+30"]

1. e4 c6 {[%emt 0:01:02]} 2. d4 {[%emt 0:00:00]} d5 {[%emt 0:00:05]} 3. Nc3 dxe4 {[%emt 0:00:30]} 4. Nxe4 {[%emt 0:00:00]} Bf5 {[%emt 0:01:29]} 5. Ng3 {[%emt 0:00:01]} Bg6 {[%emt 0:00:04]} 6. Nh3 {[%emt 0:00:18]} Nd7 {[%emt 0:05:15]} 7. Nf4 {[%emt 0:00:42]} Qc7 {[%emt 0:01:01]} 8. Bc4 {[%emt 0:07:47]} e6 {[%emt 0:02:41]} 9. O-O {[%emt 0:02:27]} Ngf6 {[%emt 0:02:40]} 10. Bxe6 {[%emt 0:17:38]} fxe6 {[%emt 0:00:48]} 11. Nxe6 {[%emt 0:00:06]} Qd6 {[%emt 0:01:41]} 12. Re1 {[%emt 0:14:25]} Kf7 {[%emt 0:01:49]} 13. Bf4 {[%emt 0:05:18]} Qb4 {[%emt 0:06:01]} 14. Nc7 {[%emt 0:02:05]} Rc8 {[%emt 0:05:17]} 15. Qe2 {[%emt 0:19:17]} Kg8 {[%emt 0:01:39]} 16. c3 {[%emt 0:06:41]} Qb6 {[%emt 0:00:47]} 17. Ne6 {[%emt 0:00:24]} Re8 {[%emt 0:14:43]} 18. Bc7 {[%emt 0:01:29]} Qa6 {[%emt 0:00:11]} 19. Qxa6 {[%emt 0:00:15]} bxa6 {[%emt 0:00:33]} 20. f4 {[%emt 0:07:58]} Nd5 {[%emt 0:16:31]} 21. f5 {[%emt 0:01:10]} Bf7 {[%emt 0:02:12]} 22. Nxf8 {[%emt 0:00:23]} Rxf8 {[%emt 0:01:03]} 23. Bd6 {[%emt 0:00:14]} Rd8 {[%emt 0:00:16]} 24. Ne4 {[%emt 0:00:48]} h6 {[%emt 0:02:34]} 25. Kf2 {[%emt 0:09:24]} Kh7 {[%emt 0:02:14]} 26. g4 {[%emt 0:01:02]} N7f6 {[%emt 0:02:46]} 27. Nxf6+ {[%emt 0:00:17]} Nxf6 {[%emt 0:00:42]} 28. Be7 {[%emt 0:00:11]} Rd7 {[%emt 0:00:31]} 29. h3 {[%emt 0:02:05]} Re8 {[%emt 0:04:36]} 30. Bxf6 {[%emt 0:00:06]} Rxe1 {[%emt 0:00:06]} 31. Rxe1 {[%emt 0:00:07]} gxf6 {[%emt 0:00:02]} 32. a3 {[%emt 0:00:30]} a5 {[%emt 0:00:39]} 33. Re2 {[%emt 0:02:20]} Kg7 {[%emt 0:01:22]} 34. Kf3 {[%emt 0:00:50]} Bd5+ {[%emt 0:01:57]} 35. Kf4 {[%emt 0:00:28]} Kf7 {[%emt 0:00:04]} 36. Kg3 {[%emt 0:00:32]} Re7 {[%emt 0:00:34]} 37. Rf2 {[%emt 0:00:29]} Re3+ {[%emt 0:00:16]} 38. Kh4 {[%emt 0:00:05]} a4 {[%emt 0:00:54]} 39. Rh2 {[%emt 0:00:04]} Bc4 {[%emt 0:01:21]} 40. Kh5 {[%emt 0:00:19]} Kg7 {[%emt 0:01:59]} 41. Kh4 {[%emt 0:03:05]} Bf7 {[%emt 0:05:01]} 42. Rg2 {[%emt 0:08:41]} Kf8 {[%emt 0:00:18]} 0-1

[Event "CZE-tht Extraliga 2018-19"]
[Site "Czech Republic"]
[Date "2019.02.09"]
[Round "7.4"]
[White "Plat, Vojtech"]
[Black "Blohberger, Felix"]
[Result "1/2-1/2"]
[ECO "E32"]
[WhiteElo "2533"]
[BlackElo "2451"]
[Annotator "ChessBase"]
[PlyCount "39"]
[EventDate "2018.11.03"]
[EventType "team-tourn"]
[EventCountry "CZE"]
[SourceTitle "playchess.com"]
[Source "ChessBase"]
[SourceQuality "1"]
[WhiteTeam "Lysa nad Labem"]
[BlackTeam "Duras"]
[TimeControl "40/5400+30:1800+30"]

1. d4 {[%emt 0:00:00]} Nf6 {[%emt 0:00:37]} 2. c4 {[%emt 0:00:00]} e6 {[%emt 0:00:03]} 3. Nc3 {[%emt 0:00:00]} Bb4 {[%emt 0:00:11]} 4. Qc2 {[%emt 0:00:00]} O-O {[%emt 0:00:35]} 5. Nf3 {[%emt 0:00:01]} d6 {[%emt 0:01:12]} 6. Bg5 {[%emt 0:01:51]} h6 {[%emt 0:03:00]} 7. Bd2 {[%emt 0:05:11]} Nc6 {[%emt 0:07:21]} 8. a3 {[%emt 0:01:52]} Bxc3 {[%emt 0:00:45]} 9. Bxc3 {[%emt 0:00:03]} Re8 {[%emt 0:00:38]} 10. b4 {[%emt 0:01:54]} e5 {[%emt 0:02:31]} 11. dxe5 {[%emt 0:00:20]} Nxe5 {[%emt 0:01:36]} 12. Nxe5 {[%emt 0:00:39]} dxe5 {[%emt 0:00:09]} 13. e4 {[%emt 0:02:50]} c5 {[%emt 0:13:10]} 14. Be2 {[%emt 0:00:50]} Qc7 {[%emt 0:02:42]} 15. O-O {[%emt 0:00:47]} Be6 {[%emt 0:02:02]} 16. Qb2 {[%emt 0:06:17]} Nd7 {[%emt 0:02:36]} 17. Rfd1 {[%emt 0:13:57]} f6 {[%emt 0:01:15]} 18. Qd2 {[%emt 0:00:58]} Nb6 {[%emt 0:11:13]} 19. bxc5 {[%emt 0:00:25]} Nxc4 {[%emt 0:17:52]} 20. Bxc4 {[%emt 0:00:08]} 1/2-1/2

[Event "CZE-tht Extraliga 2018-19"]
[Site "Czech Republic"]
[Date "2019.02.09"]
[Round "7.4"]
[White "Slovak, Kilian"]
[Black "Nayhebaver, Martin"]
[Result "0-1"]
[ECO "B96"]
[WhiteElo "2257"]
[BlackElo "2462"]
[Annotator "ChessBase"]
[PlyCount "72"]
[EventDate "2018.11.03"]
[EventType "team-tourn"]
[EventCountry "CZE"]
[SourceTitle "playchess.com"]
[Source "ChessBase"]
[SourceQuality "1"]
[WhiteTeam "Siesta B"]
[BlackTeam "Brno"]
[TimeControl "40/5400+30:1800+30"]

1. e4 {[%emt 0:00:00]} c5 {[%emt 0:00:00]} 2. Nf3 {[%emt 0:00:00]} d6 {[%emt 0:00:24]} 3. d4 {[%emt 0:00:00]} cxd4 {[%emt 0:00:06]} 4. Nxd4 {[%emt 0:00:00]} Nf6 {[%emt 0:00:15]} 5. Nc3 {[%emt 0:00:14]} a6 {[%emt 0:00:55]} 6. Bg5 {[%emt 0:00:10]} e6 {[%emt 0:01:19]} 7. f4 {[%emt 0:00:34]} h6 {[%emt 0:00:49]} 8. Bh4 {[%emt 0:00:58]} Qb6 {[%emt 0:00:14]} 9. Qd2 {[%emt 0:02:04]} Qxb2 {[%emt 0:01:55]} 10. Rb1 {[%emt 0:00:34]} Qa3 {[%emt 0:00:06]} 11. e5 {[%emt 0:00:20]} dxe5 {[%emt 0:00:24]} 12. fxe5 {[%emt 0:00:08]} Nfd7 {[%emt 0:00:11]} 13. Ne4 {[%emt 0:06:08]} Qxa2 {[%emt 0:00:44]} 14. Rd1 {[%emt 0:02:29]} Qd5 {[%emt 0:00:40]} 15. Qe3 {[%emt 0:02:51]} Qxe5 {[%emt 0:02:34]} 16. Be2 {[%emt 0:09:46]} Bc5 {[%emt 0:01:10]} 17. Bg3 {[%emt 0:01:28]} Qd5 {[%emt 0:00:16]} 18. c4 {[%emt 0:01:08]} Bxd4 {[%emt 0:00:13]} 19. Rxd4 {[%emt 0:00:33]} Qa5+ {[%emt 0:00:06]} 20. Rd2 {[%emt 0:01:15]} O-O {[%emt 0:00:26]} 21. Bd6 {[%emt 0:03:06]} f5 {[%emt 0:02:18]} 22. Bxf8 {[%emt 0:01:12]} Nxf8 {[%emt 0:00:06]} 23. Nd6 {[%emt 0:00:31]} Nbd7 {[%emt 0:03:33]} 24. Bf3 {[%emt 0:04:43]} Rb8 {[%emt 0:26:23]} 25. Kf2 {[%emt 0:08:52]} Ne5 {[%emt 0:04:13]} 26. c5 {[%emt 0:17:17]} Bd7 {[%emt 0:06:04]} 27. Re2 {[%emt 0:12:47]} Nfg6 {[%emt 0:18:28]} 28. Rd1 {[%emt 0:10:51]} Qc7 {[%emt 0:04:42]} 29. Qd4 {[%emt 0:01:26]} Nxf3 {[%emt 0:03:47]} 30. gxf3 {[%emt 0:00:22]} b6 {[%emt 0:01:30]} 31. Nc4 {[%emt 0:07:18]} Bb5 {[%emt 0:00:53]} 32. Rxe6 {[%emt 0:01:46]} Qxh2+ {[%emt 0:03:22]} 33. Ke3 {[%emt 0:01:52]} bxc5 {[%emt 0:01:22]} 34. Qd5 {[%emt 0:03:08]} Qf4+ {[%emt 0:00:58]} 35. Kd3 {[%emt 0:00:13]} Qxc4+ {[%emt 0:01:08]} 36. Qxc4 {[%emt 0:00:05]} Nf4+ {[%emt 0:00:05] Kd4} 0-1

[Event "CZE-tht Extraliga 2018-19"]
[Site "Czech Republic"]
[Date "2019.02.09"]
[Round "7.5"]
[White "Mrazek, Lumir"]
[Black "Krejci, Jan"]
[Result "1/2-1/2"]
[ECO "C55"]
[WhiteElo "2365"]
[BlackElo "2558"]
[Annotator "ChessBase"]
[PlyCount "81"]
[EventDate "2018.11.03"]
[EventType "team-tourn"]
[EventCountry "CZE"]
[SourceTitle "playchess.com"]
[Source "ChessBase"]
[SourceQuality "1"]
[WhiteTeam "Cesky Tesin"]
[BlackTeam "Novoborsky"]
[TimeControl "40/5400+30:1800+30"]

1. e4 {[%emt 0:00:09]} e5 {[%emt 0:00:00]} 2. Nf3 {[%emt 0:00:15]} Nc6 {[%emt 0:00:00]} 3. Bc4 {[%emt 0:00:16]} Nf6 {[%emt 0:01:40]} 4. O-O {[%emt 0:06:46]} Nxe4 {[%emt 0:03:12]} 5. Nc3 {[%emt 0:19:43]} Be7 {[%emt 0:29:31]} 6. Nxe4 {[%emt 0:04:23]} d5 {[%emt 0:00:04]} 7. Bb5 {[%emt 0:02:30]} dxe4 {[%emt 0:00:07]} 8. Nxe5 {[%emt 0:00:11]} Qd5 {[%emt 0:01:38]} 9. Nxc6 {[%emt 0:00:23]} bxc6 {[%emt 0:00:27]} 10. Be2 {[%emt 0:00:35]} Bf5 {[%emt 0:01:06]} 11. d3 {[%emt 0:06:31]} exd3 {[%emt 0:01:05]} 12. Bxd3 {[%emt 0:03:19]} Bxd3 {[%emt 0:02:13]} 13. Qxd3 {[%emt 0:02:16]} Qxd3 {[%emt 0:01:18]} 14. cxd3 {[%emt 0:00:19]} O-O-O {[%emt 0:00:11]} 15. Rd1 {[%emt 0:01:46]} Bf6 {[%emt 0:00:49]} 16. Rb1 {[%emt 0:01:06]} Rd5 {[%emt 0:01:19]} 17. Kf1 {[%emt 0:02:56]} Kd7 {[%emt 0:05:41]} 18. b3 {[%emt 0:07:15]} Ra5 {[%emt 0:01:18]} 19. Rd2 {[%emt 0:01:15]} Re8 {[%emt 0:06:04]} 20. Rc2 {[%emt 0:03:11]} Bd4 {[%emt 0:01:37]} 21. Bd2 {[%emt 0:03:58]} Rd5 {[%emt 0:01:03]} 22. Re1 {[%emt 0:02:58]} Rxe1+ {[%emt 0:04:49]} 23. Kxe1 {[%emt 0:08:08]} Re5+ {[%emt 0:02:49]} 24. Kf1 {[%emt 0:00:49]} Rf5 {[%emt 0:00:06]} 25. Bc1 {[%emt 0:00:46]} Kd6 {[%emt 0:01:36]} 26. Bb2 {[%emt 0:02:38]} Bxb2 {[%emt 0:00:15]} 27. Rxb2 {[%emt 0:00:05]} Rc5 {[%emt 0:00:52]} 28. Ke2 {[%emt 0:01:28]} Rc1 {[%emt 0:00:21]} 29. h4 {[%emt 0:00:58]} Kd5 {[%emt 0:03:26]} 30. Kd2 {[%emt 0:00:42]} Ra1 {[%emt 0:03:36]} 31. Rc2 {[%emt 0:00:14]} c5 {[%emt 0:00:18]} 32. g3 {[%emt 0:00:55]} f6 {[%emt 0:00:15]} 33. Ke3 {[%emt 0:03:19]} h5 {[%emt 0:00:54]} 34. Ke2 {[%emt 0:00:30]} a5 {[%emt 0:05:32]} 35. Kd2 {[%emt 0:00:50]} Rb1 {[%emt 0:03:36]} 36. Ke3 {[%emt 0:06:00]} Ra1 {[%emt 0:02:56]} 37. Kd2 {[%emt 0:00:06]} g5 {[%emt 0:00:08]} 38. Ke3 {[%emt 0:01:19]} Re1+ {[%emt 0:01:55]} 39. Kd2 {[%emt 0:00:35]} Rb1 {[%emt 0:00:08]} 40. Ke3 {[%emt 0:05:52]} Ra1 {[%emt 0:05:22]} 41. Kd2 {[%emt 0:31:24]} 1/2-1/2

[Event "CZE-tht Extraliga 2018-19"]
[Site "Czech Republic"]
[Date "2019.02.09"]
[Round "7.5"]
[White "Blatny, Pavel"]
[Black "Parizek, Vojtech"]
[Result "1-0"]
[ECO "A00"]
[WhiteElo "2337"]
[BlackElo "2333"]
[Annotator "NA"]
[PlyCount "79"]
[EventDate "2018.11.03"]
[EventType "team-tourn"]
[EventCountry "CZE"]
[SourceTitle "playchess.com"]
[Source "ChessBase"]
[SourceQuality "1"]
[WhiteTeam "Brno"]
[BlackTeam "Siesta B"]
[TimeControl "40/5400+30:1800+30"]

1. e3 e5 2. b3 Nf6 3. Bb2 Nc6 4. Ne2 d5 5. d3 Bd6 6. h3 h5 7. g3 Be6 8. Bg2 Ne7 9. a3 Qd7 10. c4 c6 11. Qc2 b5 12. c5 Bc7 13. Nd2 a5 14. Nf3 Ng6 15. Ng5 Qe7 16. Nxe6 Qxe6 17. O-O-O Nd7 18. e4 d4 19. f4 Qe7 20. fxe5 Bxe5 21. Nxd4 Qxc5 22. Nf5 Bxb2+ 23. Kxb2 Qxc2+ 24. Kxc2 O-O 25. d4 c5 26. dxc5 Nxc5 27. Rd5 Rac8 28. Kb2 Rc6 29. Rhd1 Rfc8 30. R1d2 a4 31. b4 Nb3 32. Rd8+ Rxd8 33. Rxd8+ Kh7 34. Bf1 Re6 35. Bxb5 Rxe4 36. Bxa4 Na5 37. Bc2 Nc6 38. Rd6 Re6 39. Rxe6 fxe6 40. Nh4 1-0

[Event "CZE-tht Extraliga 2018-19"]
[Site "Czech Republic"]
[Date "2019.02.09"]
[Round "7.6"]
[White "Babula, Vlastimil"]
[Black "Wiewiora, Eneasz"]
[Result "1-0"]
[ECO "D36"]
[WhiteElo "2549"]
[BlackElo "2354"]
[Annotator "ChessBase"]
[PlyCount "69"]
[EventDate "2018.11.03"]
[EventType "team-tourn"]
[EventCountry "CZE"]
[SourceTitle "playchess.com"]
[Source "ChessBase"]
[SourceQuality "1"]
[WhiteTeam "Novoborsky"]
[BlackTeam "Cesky Tesin"]
[TimeControl "40/5400+30:1800+30"]

1. d4 {[%emt 0:00:00]} d5 {[%emt 0:05:17]} 2. c4 {[%emt 0:00:00]} e6 {[%emt 0:00:08]} 3. Nc3 {[%emt 0:00:06]} Nf6 {[%emt 0:00:08]} 4. cxd5 {[%emt 0:00:23]} exd5 {[%emt 0:00:08]} 5. Bg5 {[%emt 0:00:15]} Be7 {[%emt 0:00:25]} 6. e3 {[%emt 0:00:29]} c6 {[%emt 0:00:05]} 7. Bd3 {[%emt 0:00:38]} Nbd7 {[%emt 0:00:08]} 8. Qc2 {[%emt 0:00:34]} Nf8 {[%emt 0:05:04]} 9. Nge2 {[%emt 0:02:42]} g6 {[%emt 0:17:11]} 10. f3 {[%emt 0:15:07]} Ne6 {[%emt 0:03:42]} 11. Bh4 {[%emt 0:02:05]} O-O {[%emt 0:02:36]} 12. O-O {[%emt 0:03:55]} b6 {[%emt 0:12:29]} 13. Rad1 {[%emt 0:05:37]} Bb7 {[%emt 0:02:38]} 14. Kh1 {[%emt 0:01:08]} Nh5 {[%emt 0:13:19]} 15. Bf2 {[%emt 0:02:48]} Bh4 {[%emt 0:05:07]} 16. Bg1 {[%emt 0:03:59]} f5 {[%emt 0:01:16]} 17. b4 {[%emt 0:12:44]} Rc8 {[%emt 0:08:31]} 18. Qb3 {[%emt 0:00:56]} Kh8 {[%emt 0:00:24]} 19. Bb1 {[%emt 0:03:00]} Qd7 {[%emt 0:03:01]} 20. b5 {[%emt 0:04:35]} Nhg7 {[%emt 0:07:25]} 21. bxc6 {[%emt 0:02:15]} Bxc6 {[%emt 0:00:37]} 22. e4 {[%emt 0:06:09]} Nc7 {[%emt 0:00:53]} 23. Nf4 {[%emt 0:01:22]} fxe4 {[%emt 0:04:40]} 24. fxe4 {[%emt 0:00:30]} dxe4 {[%emt 0:00:01]} 25. d5 {[%emt 0:01:46]} Bb5 {[%emt 0:00:01]} 26. Nxb5 {[%emt 0:05:56]} Nxb5 {[%emt 0:02:46]} 27. Ne6 {[%emt 0:01:54]} Rxf1 {[%emt 0:03:53]} 28. Rxf1 {[%emt 0:00:06]} Nf5 {[%emt 0:00:25]} 29. Bxe4 {[%emt 0:07:30]} Nfd6 {[%emt 0:01:18]} 30. Bb1 {[%emt 0:04:05]} Kg8 {[%emt 0:00:13]} 31. Qh3 {[%emt 0:00:55]} Qe7 {[%emt 0:00:31]} 32. Qg4 {[%emt 0:03:10]} Rc4 {[%emt 0:00:52]} 33. Bd4 {[%emt 0:03:11]} Nxd4 {[%emt 0:00:30]} 34. Qxh4 {[%emt 0:01:51]} g5 {[%emt 0:00:44]} 35. Qxg5+ {[%emt 0:01:04]} 1-0

[Event "CZE-tht Extraliga 2018-19"]
[Site "Czech Republic"]
[Date "2019.02.09"]
[Round "7.6"]
[White "Kislinsky, Alexey"]
[Black "Cerveny, Martin"]
[Result "1-0"]
[ECO "B50"]
[WhiteElo "2426"]
[BlackElo "2343"]
[Annotator "NA RC"]
[PlyCount "107"]
[EventDate "2018.11.03"]
[EventType "team-tourn"]
[EventCountry "CZE"]
[SourceTitle "playchess.com"]
[Source "ChessBase"]
[SourceQuality "1"]
[WhiteTeam "Lysa nad Labem"]
[BlackTeam "Duras"]
[TimeControl "40/5400+30:1800+30"]

1. e4 {[%emt 0:00:00]} c5 {[%emt 0:00:00]} 2. Nf3 {[%emt 0:00:00]} d6 {[%emt 0:00:00]} 3. c3 {[%emt 0:00:04]} Nf6 {[%emt 0:00:24]} 4. h3 {[%emt 0:00:33]} Nbd7 5. Bd3 b6 {[%emt 0:01:02]} 6. O-O {[%emt 0:01:19] B50: Sicilian: 2...d6, Miscellaneous} Bb7 {[%emt 0:00:00]} 7. Re1 {[%emt 0:00:10]} Qc7 {[%emt 0:00:13]} 8. Bc2 {[%emt 0:00:39]} Rc8 {[%emt 0:00:21]} 9. d3 {[%emt 0:00:51]} g6 {[%emt 0:00:30]} 10. Bf4 {[%emt 0:01:57]} (10. a4 Bg7 11. Na3 O-O 12. Bg5 e5 13. Qd2 d5 {0-1 (35) Bauer,C (2623)-Korobov,A (2700) Berlin 2015}) 10... Bg7 {[%emt 0:00:43]} 11. Nbd2 {[%emt 0:01:23]} e5 {[%emt 0:02:36]} 12. Bg5 $146 {[%emt 0:07:22]} ({Predecessor:} 12. Bh2 O-O 13. Bb3 h6 {1-0 (44) Piscopo,P (2415)-Vocaturo,D (2507) Bratto 2009}) 12... O-O {[%emt 0:01:37]} 13. Nf1 {[%emt 0:04:09]} h6 {[%emt 0:02:26]} 14. Bd2 {[%emt 0:03:21]} Rfe8 {[%emt 0:03:44]} 15. Qc1 {[%emt 0:01:20]} Kh7 {[%emt 0:01:22]} 16. Ne3 {[%emt 0:01:30]} d5 {[%emt 0:06:08]} 17. Ng4 {[%emt 0:03:07]} Nxg4 {[%emt 0:02:19]} 18. hxg4 {[%emt 0:00:08]} c4 {[%emt 0:00:08]} 19. g5 $2 {[%emt 0:05:11]} (19. exd5 $15 cxd3 20. Bxd3) 19... dxe4 {[%emt 0:11:00]} 20. dxe4 {[%emt 0:00:23]} hxg5 {[%emt 0:00:06]} 21. Nxg5+ {[%emt 0:01:29]} Kg8 {[%emt 0:00:14]} 22. Qd1 {[%emt 0:06:21]} Rcd8 {[%emt 0:02:33]} 23. b4 {[%emt 0:02:13]} a6 {[%emt 0:02:12]} 24. Qe2 {[%emt 0:02:10]} Nf8 {[%emt 0:00:49]} 25. Be3 {[%emt 0:02:52]} Bc8 {[%emt 0:03:41]} 26. a4 {[%emt 0:01:02]} f6 {[%emt 0:04:58]} 27. Nf3 {[%emt 0:01:03]} Bg4 {[%emt 0:03:54]} 28. a5 {[%emt 0:00:20]} b5 {[%emt 0:00:14]} 29. Bb6 {[%emt 0:00:17]} Qc8 {[%emt 0:03:35]} 30. Bxd8 {[%emt 0:00:14]} Rxd8 {[%emt 0:00:28]} 31. Rad1 {[%emt 0:00:29]} Re8 {[%emt 0:04:03]} 32. Qe3 {[%emt 0:01:22]} Ne6 {[%emt 0:01:08]} 33. Rd6 {[%emt 0:01:11]} Bf8 {[%emt 0:00:26]} 34. Rb6 {[%emt 0:01:14]} Be7 {[%emt 0:06:18]} 35. Nh2 {[%emt 0:02:50]} Nf4 {[%emt 0:00:49]} 36. g3 {[%emt 0:00:33]} Nh3+ {[%emt 0:11:53]} 37. Kg2 {[%emt 0:00:20]} Kg7 {[%emt 0:00:20]} 38. Nxg4 {[%emt 0:01:09]} Qxg4 {[%emt 0:00:08]} 39. Bd1 {[%emt 0:00:14]} Qc8 {[%emt 0:00:26]} 40. Rh1 $18 {[%emt 0:01:03]} Rh8 {[%emt 0:00:55]} 41. Qf3 {[%emt 0:31:50]} Ng5 {[%emt 0:35:52]} 42. Rxh8 {[%emt 0:00:26]} Qxh8 {[%emt 0:00:09]} 43. Qg4 {[%emt 0:00:41]} Qa8 {[%emt 0:00:00]} 44. Qd7 {[%emt 0:00:00]} Kf7 {[%emt 0:00:00]} 45. Rb7 {[%emt 0:00:00]} Qe8 {[%emt 0:00:00]} 46. Qxe8+ {[%emt 0:00:00]} Kxe8 {[%emt 0:00:00]} 47. Bc2 {[%emt 0:00:00]} Ne6 {[%emt 0:00:00]} 48. Ra7 {[%emt 0:00:00]} Bd8 {[%emt 0:00:57]} 49. Rxa6 {[%emt 0:00:00]} Kd7 {[%emt 0:00:06]} 50. Bd1 {[%emt 0:00:00]} f5 {[%emt 0:02:25]} 51. Bf3 {[%emt 0:00:00]} Ng5 {[%emt 0:01:49]} 52. Rxg6 {[%emt 0:00:00]} fxe4 {[%emt 0:00:18]} 53. Bg4+ {[%emt 0:00:00]} Kc7 {[%emt 0:00:19]} 54. Rg7+ {[%emt 0:00:00]} 1-0

[Event "CZE-tht Extraliga 2018-19"]
[Site "Czech Republic"]
[Date "2019.02.09"]
[Round "7.6"]
[White "Vrbata, Zbynek"]
[Black "Obsivac, Josef"]
[Result "1/2-1/2"]
[ECO "E81"]
[WhiteElo "2344"]
[BlackElo "2282"]
[Annotator "NA"]
[PlyCount "31"]
[EventDate "2018.11.03"]
[EventType "team-tourn"]
[EventCountry "CZE"]
[SourceTitle "playchess.com"]
[Source "ChessBase"]
[SourceQuality "1"]
[WhiteTeam "Siesta B"]
[BlackTeam "Brno"]
[TimeControl "40/5400+30:1800+30"]

1. d4 {[%emt 0:00:00]} Nf6 {[%emt 0:00:00]} 2. c4 {[%emt 0:00:00]} g6 {[%emt 0:00:00]} 3. f3 {[%emt 0:00:06]} Bg7 {[%emt 0:00:05]} 4. e4 {[%emt 0:00:08]} d6 {[%emt 0:00:09]} 5. Nc3 {[%emt 0:00:35]} O-O {[%emt 0:00:10]} 6. Be3 {[%emt 0:00:15]} c5 {[%emt 0:01:34]} 7. Nge2 Nc6 8. d5 {[%emt 0:03:43]} Ne5 {[%emt 0:00:48]} 9. Ng3 {[%emt 0:00:34]} h5 {[%emt 0:02:36]} 10. Be2 {[%emt 0:03:51]} h4 {[%emt 0:09:58]} 11. Nf1 {[%emt 0:04:27]} Re8 {[%emt 0:02:40]} 12. Nd2 {[%emt 0:03:03]} a6 {[%emt 0:19:30]} 13. a4 {[%emt 0:02:44]} h3 {[%emt 0:02:40]} 14. g3 {[%emt 0:06:42]} e6 {[%emt 0:06:43]} 15. O-O {[%emt 0:21:17]} exd5 {[%emt 0:01:49]} 16. cxd5 {[%emt 0:00:20]} 1/2-1/2